fUSD/lending_fUSD_20250905
["ID","MTS","AMOUNT","RATE_DAILY","PERIOD"]
[383762815,1757109206384,-447.37,0.0003863,10]
[383762816,1757109206395,-400.0,0.0003863,10]
[383762817,1757109206404,-632.37,0.0003863,10]
[383762818,1757109206414,-356.03,0.0003863,10]
[383762819,1757109206424,-400.0,0.0003863,10]
[383762820,1757109206434,-414.4,0.0003863,10]
[383762821,1757109206444,-569.2,0.0003863,10]
[383762822,1757109206454,-400.0,0.0003863,10]
[383762823,1757109206464,-981.06,0.0003863,10]
[383762824,1757109206475,-400.0,0.0003863,10]
[383762825,1757109206486,-400.0,0.0003863,10]
[383762826,1757109206496,-400.0,0.0003863,10]
[383762827,1757109206506,-322.93697922,0.0003863,10]
[383762828,1757109206517,-420.85,0.0003863,10]
[383762829,1757109206527,-542.91,0.0003863,10]
[383762830,1757109206538,-414.08,0.0003863,10]
[383762831,1757109206549,-2516.87,0.0003863,10]
[383762832,1757109206559,-1444.34,0.0003863,10]
[383762833,1757109206569,-441.96,0.0003863,10]
[383762834,1757109206579,-400.0,0.0003863,10]
[383762835,1757109206589,-487.97,0.0003863,10]
[383762836,1757109206599,-400.0,0.0003863,10]
[383762837,1757109206609,-586.94,0.0003863,10]
[383762838,1757109206619,-2345.08,0.0003863,10]
[383762839,1757109206629,-626.89,0.0003863,10]
[383762840,1757109206639,-447.68,0.0003863,10]
[383762841,1757109206650,-400.0,0.0003863,10]
[383762842,1757109206660,-498.12,0.0003863,10]
[383762843,1757109206671,-400.0,0.0003863,10]
[383762844,1757109206682,-400.0,0.0003863,10]
[383762845,1757109206692,-400.0,0.0003863,10]
[383762846,1757109206702,-448.78,0.0003863,10]
[383762847,1757109206712,-400.0,0.0003863,10]
[383762848,1757109206725,-400.0,0.0003863,10]
[383762849,1757109206735,-475.22,0.0003863,10]
[383762850,1757109206747,-400.0,0.0003863,10]
[383762851,1757109206757,-562.67,0.0003863,10]
[383762852,1757109206769,-576.12,0.0003863,10]
[383762853,1757109206779,-459.73,0.0003863,10]
[383762854,1757109206790,-400.0,0.0003863,10]
[383762855,1757109206801,-400.0,0.0003863,10]
[383762856,1757109206812,-400.0,0.0003863,10]
[383762857,1757109206823,-546.92,0.0003863,10]
[383762858,1757109206833,-400.0,0.0003863,2]
[383762859,1757109206844,-543.53,0.0003863,10]
[383762860,1757109206855,-495.5,0.0003863,10]
[383762861,1757109206865,-400.0,0.0003863,10]
[383762862,1757109206875,-551.73,0.0003863,10]
[383762863,1757109206885,-584.47,0.0003863,10]
[383762864,1757109206895,-400.0,0.0003863,10]
[383762865,1757109206905,-246.27043845,0.0003863,10]
[383762866,1757109206916,-445.12,0.0003863,10]
[383762867,1757109206927,-400.0,0.0003863,10]
[383762868,1757109206937,-400.0,0.0003863,10]
[383762869,1757109206947,-400.0,0.0003863,10]
[383762870,1757109206957,-618.31,0.0003863,10]
[383762871,1757109206967,-582.55,0.0003863,10]
[383762872,1757109206979,-2141.03,0.0003863,10]
[383762873,1757109206993,-502.39,0.0003863,10]
[383762874,1757109207004,-400.0,0.0003863,10]
[383762875,1757109207014,-400.0,0.0003863,10]
[383762876,1757109207025,-884.72,0.0003863,10]
[383762877,1757109207044,-494.68,0.0003863,10]
[383762878,1757109207064,-492.2,0.0003863,10]
[383762879,1757109207087,-590.75,0.0003863,10]
[383762880,1757109207110,-434.34,0.0003863,10]
[383762881,1757109207129,-400.0,0.0003863,10]
[383762882,1757109207153,-400.0,0.0003863,10]
[383762883,1757109207177,-400.0,0.0003863,10]
[383762884,1757109207200,-400.0,0.0003863,10]
[383762885,1757109207222,-423.04,0.0003863,10]
[383762886,1757109207244,-400.0,0.0003863,10]
[383762887,1757109207265,-474.82,0.0003863,10]
[383762888,1757109207280,-400.0,0.0003863,10]
[383762889,1757109207300,-400.0,0.0003863,10]
[383762890,1757109207316,-400.0,0.0003863,10]
[383762891,1757109207336,-400.0,0.0003863,10]
[383762892,1757109207353,-400.0,0.0003863,10]
[383762893,1757109207370,-400.0,0.0003863,10]
[383762894,1757109207389,-1028.14,0.0003863,10]
[383762895,1757109207406,-400.0,0.0003863,10]
[383762896,1757109207424,-400.0,0.0003863,10]
[383762897,1757109207441,-2757.36,0.0003863,10]
[383762898,1757109207459,-400.0,0.0003863,10]
[383762899,1757109207475,-701.4,0.0003863,10]
[383762900,1757109207493,-404.16,0.0003863,10]
[383762901,1757109207510,-696.57,0.0003863,10]
[383762902,1757109207527,-766.81,0.0003863,10]
[383762903,1757109207544,-400.0,0.0003863,10]
[383762904,1757109207561,-438.53,0.0003863,10]
[383762905,1757109207577,-336.58947603,0.0003863,10]
[383762906,1757109207594,-400.0,0.0003863,10]
[383762907,1757109207615,-400.0,0.0003863,10]
[383762908,1757109207631,-480.98,0.0003863,10]
[383762909,1757109207647,-425.95,0.0003863,10]
[383762910,1757109207664,-400.0,0.0003863,10]
[383762911,1757109207680,-400.0,0.0003863,10]
[383762912,1757109207695,-443.56,0.0003863,10]
[383762913,1757109207710,-400.0,0.0003863,10]
[383762914,1757109207724,-501.99,0.0003863,10]
[383762915,1757109207739,-400.0,0.0003863,10]
[383762916,1757109207756,-400.0,0.0003863,10]
[383762917,1757109207772,-400.0,0.0003863,10]
[383762918,1757109207788,-441.78,0.0003863,10]
[383762919,1757109207803,-545.84,0.0003863,10]
[383762920,1757109207817,-545.23,0.0003863,10]
[383762921,1757109207832,-439.9,0.0003863,10]
[383762922,1757109207849,-400.0,0.0003863,10]
[383762923,1757109207864,-405.11,0.0003863,10]
[383762924,1757109207880,-400.0,0.0003863,10]
[383762925,1757109207897,-438.40654236,0.0003863,10]
[383762926,1757109207912,-400.0,0.0003863,10]
[383762927,1757109207929,-413.96,0.0003863,10]
[383762928,1757109207943,-470.74,0.0003863,10]
[383762929,1757109207958,-400.0,0.0003863,10]
[383762930,1757109207972,-1154.65,0.0003863,10]
[383762931,1757109207988,-400.0,0.0003863,10]
[383762932,1757109208002,-3534.15,0.0003863,10]
[383762933,1757109208016,-400.0,0.0003863,10]
[383762934,1757109208031,-400.0,0.0003863,10]
[383762935,1757109208045,-466.43,0.0003863,10]
[383762936,1757109208060,-400.0,0.0003863,10]
[383762937,1757109208076,-486.3,0.0003863,10]
[383762938,1757109208089,-552.13,0.0003863,10]
[383762939,1757109208104,-529.91,0.0003863,10]
[383762940,1757109208118,-524.16,0.0003863,10]
[383762941,1757109208133,-477.2,0.0003863,10]
[383762942,1757109208148,-400.0,0.0003863,10]
[383762943,1757109208162,-836.63,0.0003863,10]
[383762944,1757109208178,-400.0,0.0003863,10]
[383762945,1757109208193,-400.0,0.0003863,10]
[383762946,1757109208208,-647.19,0.0003863,10]
[383762947,1757109208222,-400.0,0.0003863,10]
[383762948,1757109208237,-531.26,0.0003863,10]
[383762949,1757109208251,-400.0,0.0003863,10]
[383762950,1757109208266,-544.12,0.0003863,10]
[383762951,1757109208280,-690.4,0.0003863,10]
[383762952,1757109208295,-400.0,0.0003863,10]
[383762953,1757109208309,-508.58,0.0003863,10]
[383762954,1757109208324,-424.68,0.0003863,10]
[383762955,1757109208342,-400.0,0.0003863,10]
[383762956,1757109208357,-1608.94,0.0003863,10]
[383762957,1757109208372,-496.78,0.0003863,10]
[383762958,1757109208388,-400.0,0.0003863,10]
[383762959,1757109208404,-400.0,0.0003863,10]
[383762960,1757109208418,-414.05,0.0003863,10]
[383762961,1757109208432,-400.0,0.0003863,10]
[383762962,1757109208446,-400.0,0.0003863,10]
[383762963,1757109208460,-983.85,0.0003863,10]
[383762964,1757109208476,-522.3,0.0003863,10]
[383762965,1757109208491,-2782.91,0.0003863,10]
[383762966,1757109208505,-400.0,0.0003863,10]
[383762967,1757109208520,-650.54,0.0003863,10]
[383762968,1757109208536,-436.1,0.0003863,10]
[383762969,1757109208551,-1361.26,0.0003863,10]
[383762970,1757109208565,-400.0,0.0003863,10]
[383762971,1757109208579,-400.0,0.0003863,10]
[383762972,1757109208593,-400.0,0.0003863,10]
[383762973,1757109208608,-649.0,0.0003863,10]
[383762974,1757109208622,-400.0,0.0003863,10]
[383762975,1757109208635,-442.27,0.0003863,10]
[383762976,1757109208649,-474.21,0.0003863,10]
[383762977,1757109208664,-400.0,0.0003863,10]
[383762978,1757109208679,-400.0,0.0003863,10]
[383762979,1757109208693,-603.16,0.0003863,10]
[383762980,1757109208708,-407.14,0.0003863,10]
[383762981,1757109208722,-8442.03,0.0003863,10]
[383762982,1757109208737,-436.72,0.0003863,10]
[383762983,1757109208752,-443.36,0.0003863,10]
[383762984,1757109208767,-621.71,0.0003863,10]
[383762985,1757109208782,-400.0,0.0003863,10]
[383762986,1757109208798,-400.0,0.0003863,10]
[383762987,1757109208812,-522.6105774,0.0003863,10]
[383762988,1757109208827,-400.0,0.0003863,10]
[383762989,1757109208841,-406.08,0.0003863,10]
[383762990,1757109208856,-400.0,0.0003863,10]
[383762991,1757109208871,-400.0,0.0003863,10]
[383762992,1757109208885,-400.0,0.0003863,10]
[383762993,1757109208899,-1439.09,0.0003863,10]
[383762994,1757109208914,-475.57,0.0003863,10]
[383762995,1757109208929,-400.0,0.0003863,10]
[383762996,1757109208944,-2688.71,0.0003863,10]
[383762997,1757109208958,-1300.45,0.0003863,10]
[383762998,1757109208974,-400.0,0.0003863,10]
[383762999,1757109208990,-400.0,0.0003863,10]
[383763000,1757109209004,-530.86,0.0003863,10]
[383763001,1757109209019,-400.0,0.0003863,10]
[383763002,1757109209033,-400.0,0.0003863,10]
[383763003,1757109209048,-423.37,0.0003863,10]
[383763004,1757109209061,-400.0,0.0003863,10]
[383763005,1757109209075,-442.37,0.0003863,10]
[383763006,1757109209089,-425.64,0.0003863,10]
[383763007,1757109209103,-400.0,0.0003863,10]
[383763008,1757109209118,-400.0,0.0003863,10]
[383763009,1757109209132,-4723.5,0.0003863,10]
[383763010,1757109209146,-514.62,0.0003863,10]
[383763011,1757109209160,-446.4,0.0003863,10]
[383763012,1757109209173,-400.0,0.0003863,10]
[383763013,1757109209187,-783.27,0.0003863,10]
[383763014,1757109209202,-425.55,0.0003863,10]
[383763015,1757109209217,-483.04,0.0003863,10]
[383763016,1757109209231,-440.05,0.0003863,10]
[383763017,1757109209245,-400.0,0.0003863,10]
[383763018,1757109209260,-400.0,0.0003863,10]
[383763019,1757109209274,-400.0,0.0003863,10]
[383763020,1757109209288,-483.3,0.0003863,10]
[383763021,1757109209302,-400.0,0.0003863,10]
[383763022,1757109209317,-500.0,0.0003863,10]
[383763023,1757109209332,-599.12,0.0003863,10]
[383763024,1757109209347,-400.0,0.0003863,10]
[383763025,1757109209361,-677.0,0.0003863,10]
[383763026,1757109209375,-400.0,0.0003863,10]
[383763027,1757109209388,-1085.17,0.0003863,10]
[383763028,1757109209402,-400.0,0.0003863,10]
[383763029,1757109209416,-3844.91,0.0003863,10]
[383763030,1757109209430,-1689.46,0.0003863,10]
[383763031,1757109209444,-421.08,0.0003863,10]
[383763032,1757109209459,-400.0,0.0003863,10]
[383763033,1757109209474,-877.43,0.0003863,10]
[383763034,1757109209488,-400.0,0.0003863,10]
[383763035,1757109209502,-537.76,0.0003863,10]
[383763036,1757109209516,-400.0,0.0003863,10]
[383763037,1757109209530,-436.27,0.0003863,10]
[383763038,1757109209545,-479.41,0.0003863,10]
[383763039,1757109209559,-400.0,0.0003863,10]
[383763040,1757109209573,-400.0,0.0003863,10]
[383763041,1757109209587,-931.34,0.0003863,10]
[383763042,1757109209601,-400.0,0.0003863,10]
[383763043,1757109209616,-400.0,0.0003863,10]
[383763044,1757109209630,-400.0,0.0003863,10]
[383763045,1757109209643,-2095.01,0.0003863,10]
[383763046,1757109209657,-434.12,0.0003863,10]
[383763047,1757109209671,-400.0,0.0003863,10]
[383763048,1757109209686,-400.0,0.0003863,10]
[383763049,1757109209700,-1265.08,0.0003863,10]
[383763050,1757109209715,-828.12,0.0003863,10]
[383763051,1757109209729,-400.0,0.0003863,10]
[383763052,1757109209743,-490.29,0.0003863,10]
[383763053,1757109209758,-407.95,0.0003863,10]
[383763054,1757109209773,-445.3,0.0003863,10]
[383763055,1757109209789,-1988.71,0.0003863,10]
[383763056,1757109209804,-400.0,0.0003863,10]
[383763057,1757109209818,-400.0,0.0003863,10]
[383763058,1757109209832,-400.0,0.0003863,10]
[383763059,1757109209845,-400.0,0.0003863,10]
[383763060,1757109209860,-531.57,0.0003863,10]
[383763061,1757109209875,-428.34,0.0003863,10]
[383763062,1757109209890,-401.29,0.0003863,10]
[383763063,1757109209904,-720.58,0.0003863,10]
[383763064,1757109209918,-400.0,0.0003863,10]
[383763065,1757109209933,-400.0,0.0003863,10]
[383763066,1757109209947,-400.0,0.0003863,10]
[383763067,1757109209963,-400.0,0.0003863,10]
[383763068,1757109209976,-400.0,0.0003863,10]
[383763069,1757109209994,-471.02,0.0003863,10]
[383763070,1757109210009,-400.0,0.0003863,10]
[383763071,1757109210024,-2254.56,0.0003863,10]
[383763072,1757109210040,-786.84,0.0003863,10]
[383763073,1757109210056,-400.0,0.0003863,10]
[383763074,1757109210071,-1906.65,0.0003863,10]
[383763075,1757109210086,-400.0,0.0003863,10]
[383763076,1757109210101,-511.44197768,0.0003863,10]
[383763077,1757109210115,-3337.86,0.0003863,10]
[383763078,1757109210138,-400.0,0.0003863,10]
[383763079,1757109210153,-400.0,0.0003863,10]
[383763080,1757109210167,-400.0,0.0003863,10]
[383763081,1757109210183,-404.67,0.0003863,10]
[383763082,1757109210197,-516.46,0.0003863,10]
[383763083,1757109210211,-911.18,0.0003863,10]
[383763084,1757109210226,-511.96,0.0003863,10]
[383763085,1757109210241,-488.47,0.0003863,10]
[383763086,1757109210257,-1977.28,0.0003863,10]
[383763087,1757109210271,-400.0,0.0003863,10]
[383763088,1757109210826,-457.95,0.0003863,10]
[383763089,1757109210836,-400.0,0.0003863,10]
[383763090,1757109210846,-527.02,0.0003863,10]
[383763091,1757109210855,-400.0,0.0003863,10]
[383763092,1757109210865,-400.0,0.0003863,10]
[383763093,1757109210875,-400.0,0.0003863,10]
[383763094,1757109210884,-697.63,0.0003863,10]
[383763095,1757109210894,-689.76,0.0003863,10]
[383763096,1757109210904,-400.0,0.0003863,10]
[383763097,1757109210914,-6963.13,0.0003863,10]
[383763098,1757109210924,-433.65,0.0003863,10]
[383763099,1757109210933,-419.06,0.0003863,10]
[383763100,1757109210943,-400.0,0.0003863,10]
[383763101,1757109210952,-400.0,0.0003863,10]
[383763102,1757109210962,-436.45,0.0003863,10]
[383763103,1757109210972,-1232.95,0.0003863,10]
[383763104,1757109210986,-400.0,0.0003863,10]
[383763105,1757109210996,-618.53,0.0003863,10]
[383763106,1757109211006,-410.62,0.0003863,10]
[383763107,1757109211016,-2011.0,0.0003865,20]
[383763108,1757109211026,-1178.96147,0.00038688,30]
[383763109,1757109211035,-150.0,0.00038692,120]
[383763110,1757109211044,-1000.0,0.00038699,30]
[383763111,1757109211054,-398.0,0.0003872,2]
[383763112,1757109211064,-23885.12480869,0.0003876,2]
[383763113,1757109211074,-150.0,0.00038773,120]
[383763114,1757109211084,-3061.84414845,0.0003889,30]
[383763115,1757109211094,-951.89703349,0.000389,120]
[383763116,1757109211103,-499.98,0.00038904,60]
[383763117,1757109211112,-499.98,0.00038904,60]
[383763118,1757109211122,-339.30249,0.00038904,10]
[383763119,1757109211131,-634.468343,0.00038904,10]
[383763120,1757109211141,-158.793334,0.00038904,10]
[383763121,1757109211150,-161.437625,0.00038904,10]
[383763122,1757109211160,-172.086887,0.00038904,10]
[383763123,1757109211169,-400.0,0.00038904,10]
[383763124,1757109211178,-400.0,0.00038904,10]
[383763125,1757109211188,-400.0,0.00038904,10]
[383763126,1757109211197,-400.0,0.00038904,10]
[383763127,1757109211207,-400.0,0.00038904,10]
[383763128,1757109211216,-400.0,0.00038904,10]
[383763129,1757109211227,-400.0,0.00038904,10]
[383763130,1757109211236,-417.8,0.00038904,10]
[383763131,1757109211246,-400.0,0.00038904,10]
[383763132,1757109211255,-400.0,0.00038904,10]
[383763133,1757109211265,-400.0,0.00038904,10]
[383763134,1757109211275,-400.0,0.00038904,10]
[383763135,1757109211284,-400.0,0.00038904,10]
[383763136,1757109211294,-400.0,0.00038904,10]
[383763137,1757109211303,-400.0,0.00038904,10]
[383763138,1757109211312,-400.0,0.00038904,10]
[383763139,1757109211322,-400.0,0.00038904,10]
[383763140,1757109211331,-368.10833568,0.00038904,10]
[383763141,1757109211340,-400.0,0.00038904,10]
[383763142,1757109211350,-543.95589128,0.00038904,10]
[383763143,1757109211359,-400.0,0.00038904,10]
[383763144,1757109211368,-400.0,0.00038904,10]
[383763145,1757109211377,-400.0,0.00038904,10]
[383763146,1757109211386,-400.0,0.00038904,10]
[383763147,1757109211396,-400.0,0.00038904,10]
[383763148,1757109211405,-400.0,0.00038904,10]
[383763149,1757109211414,-400.0,0.00038904,10]
[383763150,1757109211424,-944.57,0.00038904,10]
[383763151,1757109211433,-400.0,0.00038904,10]
[383763152,1757109211442,-300.0,0.00038904,10]
[383763153,1757109211451,-257.44013175,0.00038904,10]
[383763154,1757109211460,-400.0,0.00038904,10]
[383763155,1757109211469,-400.0,0.00038904,10]
[383763156,1757109211479,-846.07,0.00038904,10]
[383763157,1757109211489,-400.0,0.00038904,10]
[383763158,1757109211498,-400.0,0.00038904,10]
[383763159,1757109211507,-400.0,0.00038904,10]
[383763160,1757109211516,-400.0,0.00038904,10]
[383763161,1757109211526,-400.0,0.00038904,10]
[383763162,1757109211535,-400.0,0.00038904,10]
[383763163,1757109211544,-400.0,0.00038904,10]
[383763164,1757109211553,-564.87,0.00038904,10]
[383763165,1757109211563,-765.62,0.00038904,10]
[383763166,1757109211572,-400.0,0.00038904,10]
[383763167,1757109211582,-400.0,0.00038904,10]
[383763168,1757109211591,-400.0,0.00038904,10]
[383763169,1757109211601,-400.0,0.00038904,10]
[383763170,1757109211610,-400.0,0.00038904,10]
[383763171,1757109211620,-259.07525551,0.00038904,10]
[383763172,1757109211630,-400.0,0.00038904,10]
[383763173,1757109211639,-400.0,0.00038904,10]
[383763174,1757109211648,-400.0,0.00038904,10]
[383763175,1757109211658,-156.9333876,0.00038904,10]
[383763176,1757109211668,-433.33,0.00038904,10]
[383763177,1757109211678,-480.33423636,0.00038904,10]
[383763178,1757109211687,-1155.55,0.00038904,10]
[383763179,1757109211696,-400.0,0.00038904,10]
[383763180,1757109211706,-400.0,0.00038904,10]
[383763181,1757109211715,-400.0,0.00038904,10]
[383763182,1757109211725,-400.0,0.00038904,10]
[383763183,1757109211735,-405.24,0.00038904,10]
[383763184,1757109211744,-678.29,0.00038904,10]
[383763185,1757109211753,-400.0,0.00038904,10]
[383763186,1757109211763,-400.0,0.00038904,10]
[383763187,1757109211773,-414.11,0.00038904,10]
[383763188,1757109211782,-413.3,0.00038904,10]
[383763189,1757109211791,-400.0,0.00038904,10]
[383763190,1757109211801,-400.0,0.00038904,10]
[383763191,1757109211811,-400.0,0.00038904,10]
[383763192,1757109211820,-400.0,0.00038904,10]
[383763193,1757109211829,-400.0,0.00038904,10]
[383763194,1757109211839,-400.0,0.00038904,10]
[383763195,1757109211848,-418.03,0.00038904,10]
[383763196,1757109211858,-400.0,0.00038904,10]
[383763197,1757109211868,-400.0,0.00038904,10]
[383763198,1757109211877,-400.0,0.00038904,10]
[383763199,1757109211887,-400.0,0.00038904,10]
[383763200,1757109211896,-400.0,0.00038904,10]
[383763201,1757109211906,-400.0,0.00038904,10]
[383763202,1757109211915,-400.0,0.00038904,10]
[383763203,1757109211925,-400.0,0.00038904,10]
[383763204,1757109211935,-400.0,0.00038904,10]
[383763205,1757109211944,-400.0,0.00038904,10]
[383763206,1757109211953,-420.25,0.00038904,10]
[383763207,1757109211963,-437.75,0.00038904,10]
[383763208,1757109211972,-400.0,0.00038904,10]
[383763209,1757109211984,-506.4,0.00038904,10]
[383763210,1757109211994,-437.87,0.00038904,10]
[383763211,1757109212003,-400.0,0.00038904,10]
[383763212,1757109212012,-400.0,0.00038904,10]
[383763213,1757109212022,-451.2,0.00038904,10]
[383763214,1757109212031,-400.0,0.00038904,10]
[383763215,1757109212040,-507.92,0.00038904,10]
[383763216,1757109212049,-400.0,0.00038904,10]
[383763217,1757109212059,-400.0,0.00038904,10]
[383763218,1757109212068,-400.0,0.00038904,10]
[383763219,1757109212078,-419.77230776,0.00038904,10]
[383763220,1757109212087,-400.0,0.00038904,10]
[383763221,1757109212096,-400.0,0.00038904,10]
[383763222,1757109212105,-400.0,0.00038904,10]
[383763223,1757109212115,-400.0,0.00038904,10]
[383763224,1757109212124,-461.35,0.00038904,10]
[383763225,1757109212133,-458.84,0.00038904,10]
[383763226,1757109212143,-336.78375574,0.00038904,10]
[383763227,1757109212152,-428.49,0.00038904,10]
[383763228,1757109212161,-1054.45,0.00038904,10]
[383763229,1757109212171,-409.45,0.00038904,10]
[383763230,1757109212180,-400.0,0.00038904,10]
[383763231,1757109212189,-400.0,0.00038904,10]
[383763232,1757109212198,-400.0,0.00038904,10]
[383763233,1757109212208,-542.29,0.00038904,10]
[383763234,1757109212218,-508.21,0.00038904,10]
[383763235,1757109212227,-400.0,0.00038904,10]
[383763236,1757109212237,-400.0,0.00038904,10]
[383763237,1757109212247,-493.63,0.00038904,10]
[383763238,1757109212256,-425.32,0.00038904,10]
[383763239,1757109212265,-518.21,0.00038904,10]
[383763240,1757109212275,-449.3,0.00038904,10]
[383763241,1757109212284,-510.04,0.00038904,10]
[383763242,1757109212293,-400.0,0.00038904,10]
[383763243,1757109212303,-414.48,0.00038904,10]
[383763244,1757109212312,-400.0,0.00038904,10]
[383763245,1757109212321,-400.0,0.00038904,10]
[383763246,1757109212331,-153.113189,0.00038904,10]
[383763247,1757109212341,-400.0,0.00038904,10]
[383763248,1757109212350,-970.87,0.00038904,10]
[383763249,1757109212360,-490.71,0.00038904,10]
[383763250,1757109212369,-436.72,0.00038904,10]
[383763251,1757109212379,-414.95,0.00038904,10]
[383763252,1757109212388,-400.0,0.00038904,10]
[383763253,1757109212398,-400.0,0.00038904,10]
[383763254,1757109212407,-400.0,0.00038904,10]
[383763255,1757109212417,-447.82,0.00038904,10]
[383763256,1757109212427,-647.6,0.00038904,10]
[383763257,1757109212436,-400.0,0.00038904,10]
[383763258,1757109212446,-281.21097936,0.00038904,10]
[383763259,1757109212455,-400.0,0.00038904,10]
[383763260,1757109212465,-425.6,0.00038904,10]
[383763261,1757109212475,-400.0,0.00038904,10]
[383763262,1757109212485,-490.57,0.00038904,10]
[383763263,1757109212495,-482.92282902,0.00038904,10]
[383763264,1757109212504,-400.0,0.00038904,10]
[383763265,1757109212514,-641.44,0.00038904,10]
[383763266,1757109212523,-400.0,0.00038904,10]
[383763267,1757109212533,-419.23,0.00038904,10]
[383763268,1757109212543,-403.59,0.00038904,10]
[383763269,1757109212552,-401.8,0.00038904,10]
[383763270,1757109212561,-400.0,0.00038904,10]
[383763271,1757109212571,-400.0,0.00038904,10]
[383763272,1757109212581,-400.0,0.00038904,10]
[383763273,1757109212591,-400.0,0.00038904,10]
[383763274,1757109212601,-548.51,0.00038904,10]
[383763275,1757109212610,-452.54,0.00038904,10]
[383763276,1757109212619,-400.0,0.00038904,10]
[383763277,1757109212629,-440.39,0.00038904,10]
[383763278,1757109212639,-400.0,0.00038904,10]
[383763279,1757109212649,-679.14,0.00038904,10]
[383763280,1757109212659,-433.62,0.00038904,10]
[383763281,1757109212669,-400.0,0.00038904,10]
[383763282,1757109212678,-400.0,0.00038904,10]
[383763283,1757109212688,-589.1,0.00038904,10]
[383763284,1757109212698,-551.08,0.00038904,10]
[383763285,1757109212708,-415.82,0.00038904,10]
[383763286,1757109212718,-576.99,0.00038904,10]
[383763287,1757109212728,-400.0,0.00038904,10]
[383763288,1757109212737,-455.37,0.00038904,10]
[383763289,1757109212747,-410.32,0.00038904,10]
[383763290,1757109212757,-400.0,0.00038904,10]
[383763291,1757109212767,-497.74,0.00038904,10]
[383763292,1757109212778,-404.61508977,0.00038904,10]
[383763293,1757109212788,-498.14,0.00038904,10]
[383763294,1757109212798,-878.01,0.00038904,10]
[383763295,1757109212808,-400.0,0.00038904,10]
[383763296,1757109212819,-400.0,0.00038904,10]
[383763297,1757109212829,-1227.44,0.00038904,10]
[383763298,1757109212839,-400.0,0.00038904,10]
[383763299,1757109212850,-518.8155254,0.00038904,10]
[383763300,1757109212860,-601.8,0.00038904,10]
[383763301,1757109212870,-400.0,0.00038904,10]
[383763302,1757109212880,-400.0,0.00038904,10]
[383763303,1757109212890,-404.89,0.00038904,10]
[383763304,1757109212900,-400.0,0.00038904,10]
[383763305,1757109212910,-400.0,0.00038904,10]
[383763306,1757109212921,-414.05,0.00038904,10]
[383763307,1757109212931,-562.13,0.00038904,10]
[383763308,1757109212941,-400.0,0.00038904,10]
[383763309,1757109212951,-400.0,0.00038904,10]
[383763310,1757109212961,-457.02,0.00038904,10]
[383763311,1757109212971,-400.0,0.00038904,10]
[383763312,1757109212982,-519.36,0.00038904,10]
[383763313,1757109212994,-400.0,0.00038904,10]
[383763314,1757109213003,-400.0,0.00038904,10]